fUSD/lending_fUSD_20240301
["ID","MTS","AMOUNT","RATE_DAILY","PERIOD"]
[315924261,1709284247247,-1601.46,0.00021917,2]
[315924262,1709284247257,-500.0,0.00021917,2]
[315924263,1709284247267,-547.88430216,0.00021917,2]
[315924264,1709284247277,-6960.96,0.00021917,2]
[315924265,1709284247286,-2155.24,0.00021917,2]
[315924266,1709284247296,-2945.69,0.00021917,2]
[315924267,1709284247305,-995.42,0.00021917,2]
[315924268,1709284247315,-500.0,0.00021917,2]
[315924269,1709284247324,-734.73,0.00021917,2]
[315924270,1709284247334,-500.0,0.00021917,2]
[315924271,1709284247343,-500.0,0.00021917,2]
[315924272,1709284247352,-1089.2,0.00021917,2]
[315924273,1709284247361,-2141.29,0.00021917,2]
[315924274,1709284247371,-1067.31,0.00021917,2]
[315924275,1709284247381,-500.0,0.00021917,2]
[315924276,1709284247390,-500.0,0.00021917,2]
[315924277,1709284247399,-848.9,0.00021917,2]
[315924278,1709284247409,-1085.59,0.00021917,2]
[315924279,1709284247419,-776.0,0.00021917,2]
[315924280,1709284247428,-500.0,0.00021917,2]
[315924281,1709284247438,-2298.49,0.00021917,2]
[315924282,1709284247447,-500.0,0.00021917,2]
[315924283,1709284247456,-500.0,0.00021917,2]
[315924284,1709284247466,-500.0,0.00021917,2]
[315924285,1709284247475,-500.0,0.00021917,2]
[315924286,1709284247484,-3372.0,0.00021917,2]
[315924287,1709284247495,-1015.62,0.00021917,2]
[315924288,1709284247504,-1012.74,0.00021917,2]
[315924289,1709284247514,-566.1520768,0.00021917,2]
[315924290,1709284247523,-500.0,0.00021917,2]
[315924291,1709284247532,-500.0,0.00021917,2]
[315924292,1709284247542,-654.82,0.00021917,2]
[315924293,1709284247552,-500.0,0.00021917,2]
[315924294,1709284247561,-669.0,0.00021917,2]
[315924295,1709284247570,-500.0,0.00021917,2]
[315924296,1709284247579,-500.0,0.00021917,2]
[315924297,1709284247589,-1320.88,0.00021917,2]
[315924298,1709284247598,-500.0,0.00021917,2]
[315924299,1709284247608,-1022.63,0.00021917,2]
[315924300,1709284247618,-500.0,0.00021917,2]
[315924301,1709284247627,-1807.03,0.00021917,2]
[315924302,1709284247637,-1120.93,0.00021917,2]
[315924303,1709284247646,-1834.66,0.00021917,2]
[315924304,1709284247656,-1660.25,0.00021917,2]
[315924305,1709284247665,-500.0,0.00021917,2]
[315924306,1709284247675,-500.0,0.00021917,2]
[315924307,1709284247684,-528.72,0.00021917,2]
[315924308,1709284247693,-710.04,0.00021917,2]
[315924309,1709284247703,-512.03867493,0.00021917,2]
[315924310,1709284247715,-1021.1,0.00021917,2]
[315924311,1709284247725,-500.0,0.00021917,2]
[315924312,1709284247734,-501.34995321,0.00021917,2]
[315924313,1709284247743,-500.0,0.00021917,2]
[315924314,1709284247754,-2245.39,0.00021917,2]
[315924315,1709284247764,-1007.67,0.00021917,2]
[315924316,1709284247773,-10939.48,0.00021917,2]
[315924317,1709284247783,-500.0,0.00021917,2]
[315924318,1709284247794,-5096.55,0.00021917,2]
[315924319,1709284247803,-1011.0,0.00021917,2]
[315924320,1709284247813,-500.0,0.00021917,2]
[315924321,1709284247823,-6078.39,0.00021917,2]
[315924322,1709284247832,-500.0,0.00021917,2]
[315924323,1709284247842,-432.95,0.00021918,3]
[315924324,1709284247851,-211.49,0.00021918,2]
[315924325,1709284247861,-154.19,0.00021918,2]
[315924326,1709284247870,-462.54,0.00021932,2]
[315924327,1709284247879,-504.21286786,0.00021968,2]
[315924328,1709284247888,-500.0,0.00021968,2]
[315924329,1709284247898,-617.35,0.00021968,2]
[315924330,1709284247907,-500.0,0.00021968,2]
[315924331,1709284247916,-200.0,0.00021987,2]
[315924332,1709284247925,-208.84529428,0.0002199,2]
[315924333,1709284247935,-530.8545371,0.00021999,2]
[315924334,1709284247944,-617.35,0.00021999,2]
[315924335,1709284247953,-500.0,0.00021999,2]
[315924336,1709284247962,-675.01,0.00021999,2]
[315924337,1709284247972,-675.01,0.00021999,2]
[315924338,1709284247981,-265635.49145727,0.00022,2]
[315924339,1709284247990,-612.22801672,0.00022,2]
[315924340,1709284247999,-16884.99974039,0.00022,2]
[315924341,1709284248010,-428.04388152,0.00022,2]
[315924342,1709284248019,-400.0,0.00022,3]
[315924343,1709284248029,-268264.10118354,0.00022,2]
[315924344,1709284248609,-3426.0,0.00022,2]
[315924345,1709284249270,-322.16,0.00020887,2]
[315924346,1709284249280,-322.16,0.00021907,2]
[315924347,1709284249290,-322.16,0.00021907,2]
[315924348,1709284249299,-3554.87435889,0.00022,2]
[315924349,1709284249324,-4262.61411069,0.00022,2]
[315924350,1709284249826,-888.97,0.00021917,2]
[315924351,1709284249836,-1595.91,0.00022,2]
[315924352,1709284249903,-327.04669,0.00022,2]
[315924353,1709284249978,-13.2922744,0.00022,2]
[315924354,1709284250004,-1149.00249693,0.00022,2]
[315924355,1709284250026,-6855.90067227,0.00022,2]
[315924356,1709284250038,-338.884,0.00022,2]
[315924357,1709284250051,-2214.47602659,0.00022,2]
[315924358,1709284250062,-1464.0620143,0.00022,2]
[315924359,1709284250105,-2680.96175285,0.00022,2]
[315924360,1709284250222,-497.761536,0.00022,2]
[315924361,1709284250842,584.80983317,5e-05,2]
[315924362,1709284251577,-394.60697585,0.0002,3]
[315924363,1709284251587,-155.0,0.00021479,2]
[315924364,1709284251596,-128.13778595,0.00022,2]
[315924365,1709284251617,-31088.48011605,0.00022,2]
[315924366,1709284251629,-1207.9365,0.00022,2]
[315924367,1709284251641,-5676.399999,0.00022,2]
[315924368,1709284251653,-1521.12596043,0.00022,2]
[315924369,1709284251678,-581.57342483,0.00022,2]
[315924370,1709284251710,-4244.030835,0.00022,2]
[315924371,1709284251920,-2995.06370217,0.00022,2]
[315924372,1709284253666,1898.50165483,5e-05,2]
[315924373,1709284268221,1898.50165483,5e-05,2]
[315924374,1709284290185,1898.50165483,5e-05,2]
[315924375,1709284291843,-11842.70866922,0.0001,2]
[315924376,1709284291867,-579.11524532,0.00016963,2]
[315924377,1709284291890,-159.68,0.00016964,2]
[315924378,1709284291912,-155.0,0.00019998,2]
[315924379,1709284291934,-204.66369798,0.00019999,2]
[315924380,1709284306017,11842.70866922,0.0001,2]
[315924381,1709284314249,1898.50165483,5e-05,2]
[315924382,1709284326006,11842.70866922,0.0001,2]
[315924383,1709284334188,1437.2627268,5e-05,2]
[315924384,1709284344539,11842.70866922,0.0001,2]
[315924385,1709284347659,845.9,0.0001913,2]
[315924386,1709284362022,11842.70866922,0.0001,2]
[315924387,1709284374333,2500.0,0.00020698,2]
[315924388,1709284382012,11842.70866922,0.0001,2]
[315924389,1709284386800,322.80407294,0.0001,2]
[315924390,1709284398022,11842.70866922,0.0001,2]
[315924391,1709284406396,322.73721339,0.0001,2]
[315924392,1709284424022,6864.12918052,0.0001,2]
[315924393,1709284444311,2751.0,0.00020723,2]
[315924394,1709284444939,400.0,0.00020723,2]
[315924395,1709284471848,23900.0,0.00020723,2]
[315924396,1709284495875,311.54643843,0.00020795,2]
[315924397,1709284500886,311.54643833,0.00020878,2]
[315924398,1709284503336,1892.98,0.0002067,2]
[315924399,1709284509599,500.0,0.00020624,2]
[315924400,1709284542238,600.48679256,0.0002086,2]
[315924401,1709284557819,2145.4044,0.00020794,2]
[315924402,1709284594937,463.29,0.00020366,2]
[315924403,1709284618461,337.8,0.0002064,10]
[315924404,1709284627749,183.93,0.00020366,2]
[315924405,1709284643650,179.5,0.00020519,2]
[315924406,1709284643898,179.5,0.00020575,2]
[315924407,1709284644091,179.5,0.00020631,2]
[315924408,1709284644337,179.5,0.00020688,2]
[315924409,1709284644558,179.5,0.00020744,2]
[315924410,1709284645095,179.5,0.000208,2]
[315924411,1709284645162,179.5,0.00020856,2]
[315924412,1709284645222,3685.1768,0.00020818,2]
[315924413,1709284647786,19321.60774547,0.00020888,2]
[315924414,1709284663945,250.0,0.00020194,2]
[315924415,1709284722225,1852.42,0.00020179,2]
[315924416,1709284735799,686.2,0.00020822,2]
[315924417,1709284752497,161.66,0.00020119,10]
[315924418,1709284760834,340.81967743,0.00020818,2]
[315924419,1709284765755,250.0,0.00020119,2]
[315924420,1709284809986,945.49,0.00018243,2]
[315924421,1709284810175,945.49,0.00020507,2]
[315924423,1709284818349,200.0,0.00020092,2]
[315924424,1709284841929,172.91,0.00020072,2]
[315924425,1709284847361,200.0,0.00020051,2]
[315924426,1709284860706,176.89,0.00020563,2]
[315924427,1709284869063,4177.03145802,0.00020888,2]
[315924428,1709284873510,175.92,0.0002,2]
[315924429,1709284873661,1214.13405282,0.00020888,2]
[315924430,1709284881814,200.0,0.00020043,2]
[315924431,1709284906335,869.79030017,0.00020888,2]
[315924432,1709284907197,23900.0,0.00020046,2]
[315924433,1709284912842,1050.5593775,0.00020888,2]
[315924434,1709284918516,155.0,0.00020888,2]
[315924435,1709284941570,4177.03145802,0.00020888,2]
[315924436,1709284948171,1214.13405282,0.00020888,2]
[315924437,1709284950315,669.7,0.00020072,2]
[315924438,1709284972845,869.79030017,0.00020888,2]
[315924439,1709284989769,500.0,0.00020072,2]
[315924440,1709284991367,332.93948749,0.00020797,2]
[315924441,1709284995175,155.0,0.00020888,2]
[315924442,1709284996404,332.93948735,0.00020865,2]
[315924443,1709285019833,2703.94,0.00019911,2]
[315924444,1709285032698,1214.13405282,0.00020888,2]
[315924445,1709285035430,1976.53,0.00019992,2]
[315924446,1709285059522,869.79030017,0.00020888,2]
[315924447,1709285069252,1000.0,0.00019987,2]
[315924448,1709285082744,207.8842,0.00020815,2]
[315924449,1709285090174,311.5687,0.00020815,2]
[315924450,1709285091519,254.55,0.00020137,2]
[315924451,1709285091724,254.55,0.00020192,2]
[315924452,1709285091945,254.55,0.00020248,2]
[315924453,1709285092169,254.55,0.00020303,2]
[315924454,1709285092386,254.55,0.00020358,2]
[315924455,1709285092660,254.55,0.00020413,2]
[315924456,1709285092831,254.55,0.00020469,2]
[315924457,1709285093034,254.55,0.00020524,2]
[315924458,1709285093253,254.55,0.00020579,2]
[315924459,1709285093449,254.55,0.00020634,2]
[315924460,1709285093647,254.55,0.0002069,2]
[315924461,1709285094129,254.55,0.00020745,2]
[315924462,1709285094189,254.55,0.000208,2]
[315924463,1709285094267,254.55,0.00020855,2]
[315924465,1709285106780,285726.58000411,0.00019992,2]
[315924467,1709285197248,-250.0,0.00019957,2]
[315924468,1709285197270,-1214.13405282,0.0001999,2]
[315924469,1709285197293,-98535.86594718,0.00019992,2]
[315924470,1709285198148,-83814.78567126,0.00019992,2]
[315924471,1709285198170,-633.68706052,0.00020239,2]
[315924472,1709285198201,-395.62,0.0002024,10]
[315924473,1709285198222,-15155.90726822,0.00020854,2]
[315924474,1709285212333,-4165.70047725,0.00020854,2]
[315924475,1709285212356,-155.0,0.00020894,2]
[315924476,1709285212377,-150.0,0.00020895,2]
[315924477,1709285212397,-1244.5957286,0.00020896,2]
[315924478,1709285212421,-3451.6289,0.00020897,2]
[315924479,1709285212441,-300.0,0.000209,2]
[315924480,1709285212464,-2910.72175866,0.000209,2]
[315924481,1709285212485,-833.57140238,0.000209,2]
[315924482,1709285212509,-2470.2747,0.00020904,2]
[315924483,1709285212530,-351.66,0.00020904,2]
[315924484,1709285212550,-150.99,0.00020907,2]
[315924485,1709285212571,-162.38,0.00020908,2]
[315924486,1709285212592,-35354.74,0.00020908,2]
[315924487,1709285212613,-192.13666622,0.00020908,2]
[315924488,1709285212634,-610.45,0.00020908,2]
[315924489,1709285212655,-610.45,0.00020908,2]
[315924490,1709285212676,-610.45,0.00020908,2]
[315924491,1709285212696,-43642.76,0.00020908,2]
[315924492,1709285212717,-999.99,0.00020908,2]
[315924493,1709285212738,-254.55,0.0002091,2]
[315924494,1709285212760,-1377.95036689,0.00020913,2]
[315924495,1709285216752,-415.67691263,0.00019992,2]
[315924496,1709285216775,-99584.32308737,0.00019992,2]
[315924497,1709285232037,-150.0,0.00019991,2]
[315924498,1709285232238,-82766.32853107,0.00019992,2]
[315924499,1709285232280,-250.0,0.00020141,2]
[315924500,1709285232303,-633.53519412,0.00020907,2]
[315924501,1709285232327,-150.99,0.00020908,2]
[315924502,1709285232349,-876.76342579,0.00020912,2]
[315924503,1709285232370,-1304.04498631,0.00020913,2]
[315924504,1709285232391,-155.0,0.00020913,2]
[315924505,1709285232413,-871.21841411,0.00020913,2]
[315924506,1709285232437,-12842.1194486,0.00020913,2]
[315924507,1709285233989,-6479.48829687,0.00020913,2]
[315924508,1709285234012,-6289.50176035,0.00020914,2]
[315924509,1709285234035,-6813.61246984,0.00020914,2]
[315924510,1709285234057,-1050.07013705,0.00020914,2]
[315924511,1709285234077,-155.0,0.00020915,2]
[315924512,1709285234098,-483.58304326,0.00020915,2]
[315924513,1709285234119,-693.56142391,0.00020915,2]
[315924514,1709285234141,-942.18809234,0.00020915,7]
[315924515,1709285234161,-155.42953872,0.00020915,2]
[315924516,1709285234182,-163.85407996,0.00020915,2]
[315924517,1709285234203,-1714.86406984,0.00020915,2]
[315924518,1709285234223,-5353.55655134,0.00020915,2]
[315924519,1709285234243,-155.20363422,0.00020915,2]
[315924520,1709285234265,-3363.34949226,0.00020915,2]
[315924521,1709285234286,-155.29823348,0.00020915,2]
[315924522,1709285234307,-628.56432977,0.00020915,2]
[315924523,1709285234328,-155.32222583,0.00020915,2]
[315924524,1709285234348,-155.13975763,0.00020915,2]
[315924525,1709285234368,-166.23644454,0.00020915,2]
[315924526,1709285234391,-158.20419454,0.00020915,2]
[315924527,1709285234412,-204.58750087,0.00020915,2]
[315924528,1709285234433,-205.37770551,0.00020915,2]
[315924529,1709285234455,-207.32308561,0.00020915,2]
[315924530,1709285234477,-413.00318919,0.00020915,2]
[315924531,1709285234497,-19351.1674156,0.00020915,2]
[315924532,1709285234520,-546.73402383,0.00020915,2]
[315924533,1709285234542,-231.56434775,0.00020915,2]
[315924534,1709285234563,-2750.14215054,0.00020915,2]
[315924535,1709285234585,-1341.61,0.00020915,2]
[315924536,1709285234606,-311.03,0.00020915,2]
[315924537,1709285234628,-13619.367,0.00020915,2]
[315924538,1709285234651,-25586.06580535,0.00020916,2]
[315924540,1709285392622,-914.89,0.00018296,2]
[315924541,1709285392643,-200.0,0.00020162,2]
[315924542,1709285392665,-914.89,0.0002056,2]
[315924543,1709285392687,-208.0,0.00020598,2]
[315924544,1709285392708,-176.89,0.00020787,2]
[315924545,1709285392729,-19321.60774547,0.00020814,2]
[315924546,1709285392751,-78263.72225453,0.00020815,2]
[315924547,1709285393553,-100000.0,0.00020815,2]
[315924548,1709285394444,-100000.0,0.00020815,2]
[315924549,1709285395253,-100000.0,0.00020815,2]
[315924550,1709285396726,-87868.32424547,0.00020815,2]
[315924551,1709285396750,-253.5555,0.00020815,2]
[315924552,1709285396774,-11878.12025453,0.00020916,2]
[315924562,1709285432039,-162.38,0.00020209,2]
[315924563,1709285432048,-7562.62,0.00020256,2]
[315924564,1709285432060,-16337.38,0.00020256,2]
[315924565,1709285432070,-4118.12302525,0.00020915,2]
[315924566,1709285432081,-752.35031756,0.00020915,2]
[315924567,1709285432093,-627.62684945,0.00020915,2]
[315924568,1709285432302,-385.33323618,0.00020915,2]
[315924569,1709285432314,-3751.69749833,0.00020915,2]
[315924570,1709285432357,-334.60079842,0.00020915,2]
[315924571,1709285432368,-4694.06340619,0.00020915,2]
[315924572,1709285432380,-513.92310906,0.00020915,2]
[315924573,1709285432411,-2342.76109224,0.00020915,2]
[315924574,1709285432434,-1786.60538651,0.00020915,2]
[315924575,1709285432443,-150.0,0.00020915,2]
[315924576,1709285432453,-10178.68115065,0.00020916,2]
[315924577,1709285432464,-4438.02153752,0.00020916,2]
[315924578,1709285432477,-426.345,0.00020916,2]
[315924579,1709285432510,-1032.21556697,0.00020916,2]
[315924580,1709285432522,-7385.75608498,0.00020916,2]
[315924581,1709285432532,-178.0,0.00020916,2]
[315924582,1709285432541,-415.67691263,0.00020916,2]
[315924583,1709285432550,-43219.18571857,0.00020916,2]
[315924887,1709285439687,-500.0,0.00020231,2]
[315924888,1709285439696,-995.04,0.00020906,2]
[315924889,1709285439706,-8304.82952496,0.00020916,2]
[315924890,1709285439717,-4669.32158051,0.00020916,2]
[315924891,1709285439747,-2093.2851443,0.00020916,2]
[315924897,1709285440723,-3463.59506958,0.00020916,2]
[315924898,1709285440734,-2108.22288941,0.00020916,2]
[315924899,1709285440766,-118492.21169111,0.00020916,2]
[315924900,1709285440775,-14536.87,0.00020916,2]
[315924901,1709285440789,-2000.0,0.00020916,2]
[315924902,1709285440799,-200.0,0.00020916,2]
[315924903,1709285440808,-1244.59572859,0.00020918,2]
[315924904,1709285440819,-332.93948735,0.00020933,2]
[315924905,1709285440829,-254.55,0.00020966,2]
[315924906,1709285440839,-711.390726,0.00021,2]
[315924907,1709285440849,-27362.0,0.00021,2]
[315924908,1709285440859,-175.92,0.00021,2]
[315924909,1709285440868,-332.93948735,0.00021001,2]
[315924910,1709285440878,-499.99,0.00021001,2]
[315924911,1709285440888,-848.92,0.00021001,2]
[315924912,1709285440898,-995.04,0.00021008,2]
[315924914,1709285440908,-155.0,0.00021016,2]
[315924916,1709285440918,-589.50441826,0.00021016,2]
[315924918,1709285440927,-181.61798237,0.00021016,2]
[315924920,1709285440937,-40429.88138399,0.00021018,2]
[315924921,1709285440955,-5143.54810441,0.00021018,2]
[315924922,1709285440990,-637.26935831,0.00021018,2]
[315924923,1709285441045,-275.64834104,0.00021018,2]
[315924924,1709285441498,-391.82307808,0.00021018,2]
[315924941,1709285444196,-5151.89685701,0.00021018,2]
[315924942,1709285444209,-1890.00729275,0.00021018,2]
[315924964,1709285446094,-415.67691263,0.00020916,2]
[315924966,1709285446104,-17318.92120618,0.00021018,2]
[315924975,1709285446176,-3418.09999998,0.00021018,2]
[315924986,1709285446275,-34166.48750998,0.00021018,2]
[315924994,1709285446337,-2970.0,0.00021018,2]
[315924996,1709285446349,-88206.41686827,0.00021018,2]
[315924998,1709285446359,-254.55,0.00021021,2]
[315925000,1709285446368,-332.93948735,0.00021069,2]
[315925002,1709285446377,-254.55,0.00021076,2]
[315925004,1709285446386,-1379.21,0.00021096,2]
[315925006,1709285446396,-2000.0,0.00021125,2]
[315925008,1709285446405,-200.0,0.00021125,2]
[315925010,1709285446414,-254.55,0.00021131,2]
[315925012,1709285446424,-332.93948735,0.00021138,2]
[315925014,1709285446433,-254.55,0.00021187,2]
[315925016,1709285446442,-332.93948735,0.00021206,2]
[315925018,1709285446452,-332.93948735,0.00021274,2]
[315925020,1709285446461,-2000.0,0.00021336,2]
[315925022,1709285446470,-332.93948735,0.00021342,2]
[315925024,1709285446480,-290.96,0.00021356,2]
[315925026,1709285446489,-1290.73808096,0.0002138,2]
[315925028,1709285446501,-332.93948735,0.0002141,2]
[315925030,1709285446510,-13620.33731388,0.0002144,6]
[315925032,1709285446520,-13620.33731388,0.00021443,6]
[315925034,1709285446530,-13620.33731388,0.00021451,6]
[315925036,1709285446539,-13620.33731388,0.00021463,6]
[315925038,1709285446549,-178.0,0.00021464,2]
[315925040,1709285446559,-166.32,0.00021475,2]
[315925043,1709285446569,-332.93948735,0.00021478,2]
[315925044,1709285446578,-4301.0,0.00021481,2]
[315925047,1709285446589,-332.93948735,0.00021546,2]
[315925049,1709285446598,-2000.0,0.0002155,2]
[315925051,1709285446607,-1000.0,0.00021555,2]
[315925052,1709285446616,-162.38,0.00021557,2]
[315925055,1709285446626,-365.64633018,0.000216,2]
[315925057,1709285446636,-332.93948735,0.00021614,2]
[315925059,1709285446645,-332.93948735,0.00021682,2]
[315925060,1709285446654,-919.92,0.00021699,2]
[315925063,1709285446664,-407.29,0.00021699,2]
[315925065,1709285446674,-1290.73808096,0.00021703,2]
[315925066,1709285446682,-162.0,0.0002172,2]
[315925067,1709285446691,-332.93948735,0.0002175,2]
[315925068,1709285446700,-155.91817,0.0002178,2]
[315925069,1709285446709,-150.0,0.0002178,2]
[315925071,1709285446718,-153.2455069,0.00021817,2]
[315925073,1709285446727,-332.93948735,0.00021819,2]
[315925074,1709285446736,-1441.1641596,0.00021821,2]
[315925075,1709285446745,-332.93948735,0.00021887,2]
[315925076,1709285446754,-750.0,0.000219,2]
[315925077,1709285446762,-250.69788542,0.000219,2]
[315925078,1709285446772,-995.04,0.00021907,2]
[315925079,1709285446781,-192.13666622,0.00021907,2]
[315925080,1709285446790,-368.17776113,0.00021915,2]
[315925081,1709285446799,-482.6478893,0.00021915,2]
[315925082,1709285446808,-213.63427586,0.00021915,2]
[315925083,1709285446817,-800.46650194,0.00021915,2]
[315925084,1709285446827,-11311.08692073,0.00021916,2]
[315925085,1709285446838,-490.37072162,0.00021916,2]
[315925086,1709285446847,-500.0,0.00021916,2]
[315925087,1709285446856,-500.0,0.00021916,2]
[315925088,1709285446865,-388.20141432,0.00021916,2]
[315925089,1709285446875,-244.83109972,0.00021916,2]
[315925090,1709285446884,-77789.25316055,0.00021917,4]
[315925091,1709285446893,-638.7983341,0.00021917,20]
[315925092,1709285446902,-495.62355496,0.00021917,2]
[315925093,1709285446911,-500.0,0.00021917,2]
[315925094,1709285446920,-500.0,0.00021917,2]
[315925095,1709285446930,-500.0,0.00021917,2]
[315925096,1709285446939,-500.0,0.00021917,2]
[315925097,1709285446949,-500.0,0.00021917,2]
[315925098,1709285446959,-500.0,0.00021917,2]
[315925099,1709285446969,-506.34136208,0.00021917,2]
[315925100,1709285446978,-500.74147191,0.00021917,2]
[315925101,1709285446988,-268.33,0.00021917,2]
[315925102,1709285446997,-500.0,0.00021917,2]
[315925103,1709285447007,-500.0,0.00021917,2]
[315925104,1709285447017,-500.0,0.00021917,2]
[315925105,1709285447026,-500.0,0.00021917,2]
[315925106,1709285447035,-500.0,0.00021917,2]
[315925107,1709285447045,-500.0,0.00021917,2]
[315925108,1709285447054,-510.72698995,0.00021917,2]
[315925109,1709285447064,-500.0,0.00021917,2]
[315925110,1709285447072,-500.0,0.00021917,2]
[315925111,1709285447085,-500.0,0.00021917,2]
[315925112,1709285447095,-500.0,0.00021917,2]
[315925113,1709285447105,-505.00299657,0.00021917,2]
[315925114,1709285447114,-500.0,0.00021917,2]
[315925115,1709285447124,-500.0,0.00021917,2]
[315925116,1709285447134,-500.0,0.00021917,2]
[315925117,1709285447143,-507.56271871,0.00021917,2]
[315925118,1709285447153,-500.0,0.00021917,2]
[315925119,1709285447162,-500.0,0.00021917,2]
[315925120,1709285447172,-500.0,0.00021917,2]
[315925121,1709285447181,-500.0,0.00021917,2]
[315925122,1709285447191,-500.0,0.00021917,2]
[315925123,1709285447200,-500.0,0.00021917,2]
[315925124,1709285447211,-500.0,0.00021917,2]
[315925125,1709285447220,-500.0,0.00021917,2]
[315925126,1709285447230,-500.0,0.00021917,2]
[315925127,1709285447240,-500.0,0.00021917,2]
[315925128,1709285447249,-500.0,0.00021917,2]
[315925129,1709285447259,-500.0,0.00021917,2]
[315925130,1709285447268,-500.0,0.00021917,2]
[315925131,1709285447278,-515.19036359,0.00021917,2]
[315925132,1709285447287,-500.0,0.00021917,2]
[315925133,1709285447296,-513.05,0.00021917,2]
[315925134,1709285447306,-500.0,0.00021917,2]
[315925135,1709285447315,-500.0,0.00021917,2]
[315925136,1709285447324,-500.0,0.00021917,2]
[315925137,1709285447336,-500.0,0.00021917,2]
[315925138,1709285447345,-500.0,0.00021917,2]
[315925139,1709285447355,-516.50463782,0.00021917,2]
[315925140,1709285447364,-500.0,0.00021917,2]
[315925141,1709285447373,-500.0,0.00021917,2]
[315925142,1709285447383,-515.0104352,0.00021917,2]
[315925143,1709285447392,-500.0,0.00021917,2]
[315925144,1709285447402,-500.0,0.00021917,2]
[315925145,1709285447412,-282.3900564,0.00021917,2]
[315925146,1709285447421,-489.62352474,0.00021917,2]
[315925147,1709285447430,-500.0,0.00021917,2]
[315925148,1709285447439,-500.0,0.00021917,2]
[315925149,1709285447449,-500.0,0.00021917,2]
[315925150,1709285447458,-500.0,0.00021917,2]
[315925151,1709285447467,-628.35,0.00021917,2]
[315925152,1709285447477,-500.0,0.00021917,2]
[315925153,1709285447489,-532.5365284,0.00021917,2]
[315925154,1709285447499,-500.0,0.00021917,2]
[315925155,1709285447508,-522.2440563,0.00021917,2]
[315925156,1709285447518,-500.0,0.00021917,2]
[315925157,1709285447528,-500.0,0.00021917,2]
[315925158,1709285447537,-500.0,0.00021917,2]
[315925159,1709285447546,-500.0,0.00021917,2]
[315925160,1709285447556,-500.0,0.00021917,2]
[315925161,1709285447564,-500.0,0.00021917,2]
[315925162,1709285447574,-500.0,0.00021917,2]
[315925163,1709285447586,-500.0,0.00021917,2]
[315925164,1709285447595,-500.0,0.00021917,2]
[315925165,1709285447606,-500.0,0.00021917,2]
[315925166,1709285447615,-500.0,0.00021917,2]
[315925167,1709285447623,-500.0,0.00021917,2]
[315925168,1709285447632,-480.06448276,0.00021917,2]
[315925169,1709285447641,-500.0,0.00021917,2]
[315925170,1709285447650,-500.0,0.00021917,2]
[315925171,1709285447659,-522.54678488,0.00021917,2]
[315925172,1709285447668,-500.0,0.00021917,2]
[315925173,1709285447677,-500.0,0.00021917,2]
[315925174,1709285447686,-500.0,0.00021917,2]
[315925175,1709285447695,-500.0,0.00021917,2]
[315925176,1709285447704,-500.0,0.00021917,2]
[315925177,1709285447713,-500.0,0.00021917,2]
[315925178,1709285447722,-497.19220077,0.00021917,2]
[315925179,1709285447731,-500.0,0.00021917,2]
[315925180,1709285447742,-500.0,0.00021917,2]
[315925181,1709285447751,-500.0,0.00021917,2]
[315925182,1709285447760,-500.0,0.00021917,2]
[315925183,1709285447769,-359.24325387,0.00021917,2]
[315925184,1709285447778,-162.45187994,0.00021917,2]
[315925185,1709285447787,-500.0,0.00021917,2]
[315925186,1709285447797,-500.0,0.00021917,2]